[Event "Titled Tuesday Blitz March 07 Late 2023"]
[White "Gerzhoy, Leonid"]
[Black "Yuan, Qingyu"]
[WhiteFideId "2806126"]
[BlackFideId "8609772"]
[WhiteElo "2615"]
[BlackElo "2359"]
[Result "1-0"]
[Round "08"]
[TimeControl "180+2"]
[Date "2023.03.07"]
[WhiteClock "0:02:30"]
[BlackClock "0:01:34"]

1. d4 {[%clk 0:02:59]}  d5 {[%clk 0:03:00]} 2. c4 {[%clk 0:02:56]}  e6 {[%clk 0:03:00]} 3. Nc3 {[%clk 0:02:55]}  Be7 {[%clk 0:03:01]} 4. Nf3 {[%clk 0:02:54]}  Nf6 {[%clk 0:03:01]} 5. e3 {[%clk 0:02:54]}  O-O {[%clk 0:03:01]} 6. b3 {[%clk 0:02:53]}  c5 {[%clk 0:02:59]} 7. Bd3 {[%clk 0:02:53]}  cxd4 {[%clk 0:02:59]} 8. exd4 {[%clk 0:02:52]}  b6 {[%clk 0:02:58]} 9. O-O {[%clk 0:02:51]}  Bb7 {[%clk 0:02:59]} 10. Bb2 {[%clk 0:02:51]}  Nc6 {[%clk 0:02:58]} 11. Rc1 {[%clk 0:02:50]}  Rc8 {[%clk 0:02:58]} 12. Qe2 {[%clk 0:02:51]}  dxc4 {[%clk 0:02:48]} 13. bxc4 {[%clk 0:02:49]}  Nxd4 {[%clk 0:02:35]} 14. Nxd4 {[%clk 0:02:47]}  Qxd4 {[%clk 0:02:36]} 15. Nd5 {[%clk 0:02:47]}  Qc5 {[%clk 0:02:36]} 16. Bxf6 {[%clk 0:02:46]}  gxf6 {[%clk 0:02:14]} 17. Bxh7+ {[%clk 0:02:40]}  Kxh7 {[%clk 0:02:03]} 18. Qh5+ {[%clk 0:02:38]}  Kg7 {[%clk 0:02:04]} 19. Qg4+ {[%clk 0:02:37]}  Kh8 {[%clk 0:01:35]} 20. Rc3 {[%clk 0:02:31]}  Qxc4 {[%clk 0:01:34]} 21. Rh3# {[%clk 0:02:30]} 1-0


[Site "https://www.chess.com"]

[Event "Titled Tuesday Blitz March 07 Late 2023"]
[White "Baskakov, Egor"]
[Black "Diaz Perez, Michel Alejandro"]
[WhiteFideId "24197866"]
[BlackFideId "3517179"]
[WhiteElo "2212"]
[BlackElo "2333"]
[Result "0-1"]
[Round "08"]
[TimeControl "180+2"]
[Date "2023.03.07"]
[WhiteClock "0:00:40"]
[BlackClock "0:01:01"]

1. e4 {[%clk 0:03:00]}  d6 {[%clk 0:02:58]} 2. g3 {[%clk 0:03:00]}  Nf6 {[%clk 0:02:59]} 3. Bg2 {[%clk 0:03:00]}  e5 {[%clk 0:03:00]} 4. Ne2 {[%clk 0:03:00]}  h5 {[%clk 0:02:59]} 5. h3 {[%clk 0:03:00]}  Nbd7 {[%clk 0:02:57]} 6. O-O {[%clk 0:02:59]}  c6 {[%clk 0:02:57]} 7. d4 {[%clk 0:02:59]}  Be7 {[%clk 0:02:56]} 8. c4 {[%clk 0:02:59]}  Qc7 {[%clk 0:02:54]} 9. Nbc3 {[%clk 0:02:58]}  b6 {[%clk 0:02:46]} 10. Be3 {[%clk 0:02:57]}  Bb7 {[%clk 0:02:46]} 11. Rc1 {[%clk 0:02:56]}  Nf8 {[%clk 0:02:34]} 12. Qa4 {[%clk 0:02:52]}  Ng6 {[%clk 0:02:32]} 13. f4 {[%clk 0:02:42]}  exf4 {[%clk 0:02:30]} 14. Nxf4 {[%clk 0:02:43]}  Nxf4 {[%clk 0:02:24]} 15. Bxf4 {[%clk 0:02:43]}  O-O {[%clk 0:02:19]} 16. Qd1 {[%clk 0:02:37]}  Rfe8 {[%clk 0:02:17]} 17. e5 {[%clk 0:02:32]}  dxe5 {[%clk 0:02:15]} 18. dxe5 {[%clk 0:02:33]}  Bc5+ {[%clk 0:02:07]} 19. Kh1 {[%clk 0:02:33]}  Rxe5 {[%clk 0:02:05]} 20. Bxe5 {[%clk 0:02:26]}  Qxe5 {[%clk 0:02:06]} 21. Qf3 {[%clk 0:02:20]}  Bd6 {[%clk 0:02:00]} 22. Rfe1 {[%clk 0:02:10]}  Qg5 {[%clk 0:01:52]} 23. Re3 {[%clk 0:01:55]}  Bc5 {[%clk 0:01:24]} 24. Ree1 {[%clk 0:01:54]}  h4 {[%clk 0:01:24]} 25. g4 {[%clk 0:01:50]}  Rd8 {[%clk 0:01:18]} 26. Rcd1 {[%clk 0:01:39]}  Rxd1 {[%clk 0:01:15]} 27. Qxd1 {[%clk 0:01:33]}  g6 {[%clk 0:01:09]} 28. Qd8+ {[%clk 0:01:20]}  Kg7 {[%clk 0:01:09]} 29. Qc7 {[%clk 0:01:13]}  Ba6 {[%clk 0:01:08]} 30. Rf1 {[%clk 0:00:59]}  Bxc4 {[%clk 0:01:05]} 31. Ne4 {[%clk 0:01:00]}  Nxe4 {[%clk 0:01:04]} 32. Qf4 {[%clk 0:00:40]}  Ng3+ {[%clk 0:01:01]} 0-1


[Site "https://www.chess.com"]

[Event "Titled Tuesday Blitz March 07 Late 2023"]
[White "Berezin, Viktor"]
[Black "Bitoon, Richard"]
[WhiteFideId "14107872"]
[BlackFideId "5201110"]
[WhiteElo "2310"]
[BlackElo "2374"]
[Result "1-0"]
[Round "08"]
[TimeControl "180+2"]
[Date "2023.03.07"]
[WhiteClock "0:00:13"]
[BlackClock "0:00:01"]

1. d4 {[%clk 0:03:00]}  Nf6 {[%clk 0:02:59]} 2. c4 {[%clk 0:03:00]}  g6 {[%clk 0:03:00]} 3. Nf3 {[%clk 0:03:00]}  Bg7 {[%clk 0:03:01]} 4. g3 {[%clk 0:03:01]}  O-O {[%clk 0:03:01]} 5. Bg2 {[%clk 0:03:01]}  d6 {[%clk 0:03:02]} 6. O-O {[%clk 0:03:02]}  Nc6 {[%clk 0:03:03]} 7. Nc3 {[%clk 0:03:02]}  Bg4 {[%clk 0:03:04]} 8. Ne1 {[%clk 0:02:47]}  Qc8 {[%clk 0:02:56]} 9. Nc2 {[%clk 0:02:43]}  Bh3 {[%clk 0:02:56]} 10. e4 {[%clk 0:02:41]}  Nh5 {[%clk 0:02:49]} 11. Be3 {[%clk 0:02:37]}  e5 {[%clk 0:02:44]} 12. d5 {[%clk 0:02:31]}  Ne7 {[%clk 0:02:44]} 13. c5 {[%clk 0:02:31]}  Bxg2 {[%clk 0:02:43]} 14. Kxg2 {[%clk 0:02:31]}  f5 {[%clk 0:02:43]} 15. Bg5 {[%clk 0:02:20]}  Bf6 {[%clk 0:02:37]} 16. Bh6 {[%clk 0:02:02]}  Rf7 {[%clk 0:02:32]} 17. exf5 {[%clk 0:01:58]}  Nxf5 {[%clk 0:02:32]} 18. Be3 {[%clk 0:01:56]}  Qd7 {[%clk 0:00:53]} 19. Ne4 {[%clk 0:01:52]}  Raf8 {[%clk 0:00:54]} 20. cxd6 {[%clk 0:01:34]}  Nxe3+ {[%clk 0:00:48]} 21. Nxe3 {[%clk 0:01:27]}  cxd6 {[%clk 0:00:49]} 22. Qg4 {[%clk 0:01:18]}  Qxg4 {[%clk 0:00:31]} 23. Nxg4 {[%clk 0:01:19]}  Rd7 {[%clk 0:00:31]} 24. Rac1 {[%clk 0:01:08]}  Bd8 {[%clk 0:00:31]} 25. Rc8 {[%clk 0:01:02]}  Kg7 {[%clk 0:00:23]} 26. Rfc1 {[%clk 0:00:57]}  a6 {[%clk 0:00:17]} 27. R1c2 {[%clk 0:00:50]}  Be7 {[%clk 0:00:12]} 28. R8c7 {[%clk 0:00:47]}  Rfd8 {[%clk 0:00:11]} 29. b4 {[%clk 0:00:37]}  h6 {[%clk 0:00:04]} 30. a4 {[%clk 0:00:37]}  Kf7 {[%clk 0:00:02]} 31. b5 {[%clk 0:00:35]}  Kg7 {[%clk 0:00:01]} 32. bxa6 {[%clk 0:00:32]}  bxa6 {[%clk 0:00:02]} 33. a5 {[%clk 0:00:32]}  Bf8 {[%clk 0:00:02]} 34. R2c6 {[%clk 0:00:31]}  Rxc7 {[%clk 0:00:03]} 35. Rxc7+ {[%clk 0:00:32]}  Kh8 {[%clk 0:00:03]} 36. Ngf6 {[%clk 0:00:24]}  Nxf6 {[%clk 0:00:03]} 37. Nxf6 {[%clk 0:00:25]}  Bg7 {[%clk 0:00:03]} 38. Nd7 {[%clk 0:00:25]}  Ra8 {[%clk 0:00:02]} 39. Nb6 {[%clk 0:00:25]}  Rf8 {[%clk 0:00:03]} 40. Ra7 {[%clk 0:00:24]}  e4 {[%clk 0:00:03]} 41. Rxa6 {[%clk 0:00:22]}  Bd4 {[%clk 0:00:04]} 42. Ra8 {[%clk 0:00:19]}  Rxa8 {[%clk 0:00:01]} 43. Nxa8 {[%clk 0:00:19]}  Kg7 {[%clk 0:00:01]} 44. Nc7 {[%clk 0:00:18]}  Kf6 {[%clk 0:00:02]} 45. a6 {[%clk 0:00:15]}  Ke5 {[%clk 0:00:02]} 46. Nb5 {[%clk 0:00:15]}  Bc5 {[%clk 0:00:01]} 47. Nc7 {[%clk 0:00:10]}  Bd4 {[%clk 0:00:01]} 48. Kf1 {[%clk 0:00:09]}  Bb6 {[%clk 0:00:02]} 49. Nb5 {[%clk 0:00:04]}  Kxd5 {[%clk 0:00:02]} 50. a7 {[%clk 0:00:04]}  Bxa7 {[%clk 0:00:02]} 51. Nxa7 {[%clk 0:00:05]}  Kc5 {[%clk 0:00:03]} 52. Nc8 {[%clk 0:00:06]}  d5 {[%clk 0:00:03]} 53. Ne7 {[%clk 0:00:06]}  g5 {[%clk 0:00:04]} 54. Nf5 {[%clk 0:00:06]}  h5 {[%clk 0:00:05]} 55. h4 {[%clk 0:00:06]}  gxh4 {[%clk 0:00:05]} 56. gxh4 {[%clk 0:00:07]}  d4 {[%clk 0:00:05]} 57. Ke2 {[%clk 0:00:07]}  Kd5 {[%clk 0:00:06]} 58. Ng7 {[%clk 0:00:08]}  Ke5 {[%clk 0:00:06]} 59. Nxh5 {[%clk 0:00:08]}  Kf5 {[%clk 0:00:06]} 60. Ng3+ {[%clk 0:00:08]}  Kf4 {[%clk 0:00:07]} 61. h5 {[%clk 0:00:09]}  d3+ {[%clk 0:00:07]} 62. Kd2 {[%clk 0:00:08]}  Kg4 {[%clk 0:00:07]} 63. h6 {[%clk 0:00:08]}  Kf3 {[%clk 0:00:07]} 64. Ke1 {[%clk 0:00:08]}  e3 {[%clk 0:00:07]} 65. fxe3 {[%clk 0:00:07]}  Kxg3 {[%clk 0:00:08]} 66. h7 {[%clk 0:00:08]}  Kf3 {[%clk 0:00:09]} 67. Kd2 {[%clk 0:00:08]}  Kf2 {[%clk 0:00:05]} 68. h8=Q {[%clk 0:00:09]}  Kf3 {[%clk 0:00:05]} 69. Kxd3 {[%clk 0:00:09]}  Kf2 {[%clk 0:00:06]} 70. Qf6+ {[%clk 0:00:10]}  Kg3 {[%clk 0:00:06]} 71. Ke2 {[%clk 0:00:10]}  Kg4 {[%clk 0:00:06]} 72. Qf3+ {[%clk 0:00:10]}  Kh4 {[%clk 0:00:06]} 73. e4 {[%clk 0:00:11]}  Kg5 {[%clk 0:00:07]} 74. e5 {[%clk 0:00:12]}  Kg6 {[%clk 0:00:07]} 75. e6 {[%clk 0:00:13]}  Kg7 {[%clk 0:00:08]} 76. e7 {[%clk 0:00:13]}  Kh7 {[%clk 0:00:09]} 77. Qg3 {[%clk 0:00:12]}  Kh6 {[%clk 0:00:08]} 78. e8=Q {[%clk 0:00:12]}  Kh7 {[%clk 0:00:09]} 79. Qeg8+ {[%clk 0:00:12]}  Kh6 {[%clk 0:00:01]} 80. Q8g6# {[%clk 0:00:13]} 1-0


[Site "https://www.chess.com"]

[Event "Titled Tuesday Blitz March 07 Late 2023"]
[White "Cardoso Cardoso, Jose Gabriel"]
[Black "Pert, Richard G"]
[WhiteFideId "4430492"]
[BlackFideId "404748"]
[WhiteElo "2496"]
[BlackElo "2441"]
[Result "1-0"]
[Round "08"]
[TimeControl "180+2"]
[Date "2023.03.07"]
[WhiteClock "0:01:35"]
[BlackClock "0:00:40"]

1. d4 {[%clk 0:02:57]}  Nf6 {[%clk 0:02:57]} 2. Nc3 {[%clk 0:02:55]}  d5 {[%clk 0:02:56]} 3. Bf4 {[%clk 0:02:54]}  e6 {[%clk 0:02:48]} 4. e3 {[%clk 0:02:54]}  Bb4 {[%clk 0:02:44]} 5. Ne2 {[%clk 0:02:54]}  O-O {[%clk 0:02:43]} 6. a3 {[%clk 0:02:54]}  Bd6 {[%clk 0:02:38]} 7. Ng3 {[%clk 0:02:39]}  b6 {[%clk 0:02:28]} 8. Bd3 {[%clk 0:02:38]}  Ba6 {[%clk 0:02:26]} 9. Bxa6 {[%clk 0:02:33]}  Nxa6 {[%clk 0:02:25]} 10. Qd3 {[%clk 0:02:33]}  Nb8 {[%clk 0:02:19]} 11. O-O {[%clk 0:02:20]}  Bxf4 {[%clk 0:02:14]} 12. exf4 {[%clk 0:02:19]}  g6 {[%clk 0:02:11]} 13. b4 {[%clk 0:02:16]}  c5 {[%clk 0:02:06]} 14. dxc5 {[%clk 0:02:13]}  bxc5 {[%clk 0:02:07]} 15. Na4 {[%clk 0:02:09]}  Nbd7 {[%clk 0:01:59]} 16. c4 {[%clk 0:02:05]}  dxc4 {[%clk 0:01:49]} 17. Qxc4 {[%clk 0:02:04]}  cxb4 {[%clk 0:01:48]} 18. axb4 {[%clk 0:02:04]}  Qe7 {[%clk 0:01:46]} 19. Rfc1 {[%clk 0:01:56]}  Nd5 {[%clk 0:01:41]} 20. Nc5 {[%clk 0:01:54]}  Rfc8 {[%clk 0:01:30]} 21. Nge4 {[%clk 0:01:54]}  Nxf4 {[%clk 0:01:11]} 22. Rd1 {[%clk 0:01:42]}  Nd5 {[%clk 0:01:08]} 23. Qd4 {[%clk 0:01:39]}  Nxc5 {[%clk 0:01:07]} 24. bxc5 {[%clk 0:01:37]}  a5 {[%clk 0:01:04]} 25. Qe5 {[%clk 0:01:35]}  Rxc5 {[%clk 0:00:51]} 26. Rxd5 {[%clk 0:01:34]}  Rxd5 {[%clk 0:00:49]} 27. Nf6+ {[%clk 0:01:34]}  Kf8 {[%clk 0:00:49]} 28. Nxd5 {[%clk 0:01:35]}  exd5 {[%clk 0:00:40]} 29. Qh8# {[%clk 0:01:35]} 1-0


[Site "https://www.chess.com"]

[Event "Titled Tuesday Blitz March 07 Late 2023"]
[White "Melikhov, Evgeny V."]
[Black "Fus, Jakub"]
[WhiteFideId "4122046"]
[BlackFideId "1193023"]
[WhiteElo "2158"]
[BlackElo "2335"]
[Result "0-1"]
[Round "08"]
[TimeControl "180+2"]
[Date "2023.03.07"]
[WhiteClock "0:00:08"]
[BlackClock "0:01:09"]

1. d4 {[%clk 0:03:00]}  e6 {[%clk 0:02:59]} 2. c4 {[%clk 0:03:00]}  Nf6 {[%clk 0:02:59]} 3. Nc3 {[%clk 0:03:00]}  d5 {[%clk 0:02:57]} 4. cxd5 {[%clk 0:03:00]}  exd5 {[%clk 0:02:58]} 5. Bg5 {[%clk 0:03:00]}  c6 {[%clk 0:02:59]} 6. Qc2 {[%clk 0:03:00]}  h6 {[%clk 0:02:59]} 7. Bh4 {[%clk 0:02:59]}  Bd6 {[%clk 0:02:59]} 8. e3 {[%clk 0:02:58]}  O-O {[%clk 0:03:00]} 9. Bd3 {[%clk 0:02:57]}  Re8 {[%clk 0:03:00]} 10. Nge2 {[%clk 0:02:56]}  a5 {[%clk 0:02:59]} 11. h3 {[%clk 0:02:50]}  Na6 {[%clk 0:02:59]} 12. a3 {[%clk 0:02:49]}  Nc7 {[%clk 0:02:59]} 13. O-O {[%clk 0:02:48]}  Ne6 {[%clk 0:03:00]} 14. f4 {[%clk 0:02:44]}  Be7 {[%clk 0:02:57]} 15. Rae1 {[%clk 0:02:33]}  Bd7 {[%clk 0:02:54]} 16. f5 {[%clk 0:02:19]}  Ng5 {[%clk 0:02:47]} 17. Bxg5 {[%clk 0:02:11]}  hxg5 {[%clk 0:02:48]} 18. g4 {[%clk 0:01:56]}  Bd6 {[%clk 0:02:43]} 19. e4 {[%clk 0:01:38]}  dxe4 {[%clk 0:02:42]} 20. Nxe4 {[%clk 0:01:38]}  Nxe4 {[%clk 0:02:41]} 21. Bxe4 {[%clk 0:01:38]}  Qf6 {[%clk 0:02:39]} 22. Bg2 {[%clk 0:01:28]}  Bc7 {[%clk 0:02:37]} 23. Nc3 {[%clk 0:01:05]}  Qxd4+ {[%clk 0:02:34]} 24. Qf2 {[%clk 0:01:04]}  Qd6 {[%clk 0:02:33]} 25. Bf3 {[%clk 0:00:52]}  Rxe1 {[%clk 0:02:15]} 26. Rxe1 {[%clk 0:00:50]}  Re8 {[%clk 0:02:15]} 27. Rd1 {[%clk 0:00:45]}  Qe7 {[%clk 0:02:10]} 28. Qd4 {[%clk 0:00:29]}  Bc8 {[%clk 0:02:07]} 29. Kg2 {[%clk 0:00:21]}  Rd8 {[%clk 0:01:49]} 30. Qe4 {[%clk 0:00:17]}  Qf6 {[%clk 0:01:50]} 31. Rxd8+ {[%clk 0:00:16]}  Qxd8 {[%clk 0:01:51]} 32. Ne2 {[%clk 0:00:13]}  Kf8 {[%clk 0:01:45]} 33. Qd4 {[%clk 0:00:12]}  Qe7 {[%clk 0:01:42]} 34. Qc3 {[%clk 0:00:11]}  Qd6 {[%clk 0:01:37]} 35. Qd4 {[%clk 0:00:09]}  Qh2+ {[%clk 0:01:33]} 36. Kf1 {[%clk 0:00:09]}  Qxh3+ {[%clk 0:01:18]} 37. Bg2 {[%clk 0:00:09]}  Qh2 {[%clk 0:01:18]} 38. f6 {[%clk 0:00:09]}  gxf6 {[%clk 0:01:14]} 39. Qxf6 {[%clk 0:00:08]}  Qe5 {[%clk 0:01:14]} 40. Qxe5 {[%clk 0:00:07]}  Bxe5 {[%clk 0:01:15]} 41. Nc3 {[%clk 0:00:07]}  Bxc3 {[%clk 0:01:14]} 42. bxc3 {[%clk 0:00:07]}  Bxg4 {[%clk 0:01:15]} 43. Kf2 {[%clk 0:00:07]}  Ke7 {[%clk 0:01:15]} 44. Ke3 {[%clk 0:00:08]}  Kd6 {[%clk 0:01:14]} 45. Kd4 {[%clk 0:00:09]}  Be6 {[%clk 0:01:11]} 46. c4 {[%clk 0:00:09]}  b6 {[%clk 0:01:09]} 47. Bf3 {[%clk 0:00:08]}  f5 {[%clk 0:01:09]} 0-1


[Site "https://www.chess.com"]

[Event "Titled Tuesday Blitz March 07 Late 2023"]
[White "Kokoszczynski, Jan"]
[Black "Duda, Jan-Krzysztof"]
[WhiteFideId "1174460"]
[BlackFideId "1170546"]
[WhiteElo "2139"]
[BlackElo "2790"]
[Result "0-1"]
[Round "08"]
[TimeControl "180+2"]
[Date "2023.03.07"]
[WhiteClock "0:00:02"]
[BlackClock "0:00:08"]

1. Nf3 {[%clk 0:02:56]}  g6 {[%clk 0:03:00]} 2. d4 {[%clk 0:02:56]}  d6 {[%clk 0:03:00]} 3. g3 {[%clk 0:02:55]}  b6 {[%clk 0:02:59]} 4. Bg2 {[%clk 0:02:55]}  c6 {[%clk 0:03:00]} 5. O-O {[%clk 0:02:56]}  a6 {[%clk 0:03:00]} 6. c4 {[%clk 0:02:56]}  e6 {[%clk 0:03:01]} 7. Nc3 {[%clk 0:02:56]}  f6 {[%clk 0:03:01]} 8. e3 {[%clk 0:02:56]}  h6 {[%clk 0:03:02]} 9. e4 {[%clk 0:02:44]}  Ne7 {[%clk 0:03:00]} 10. h4 {[%clk 0:02:41]}  Bg7 {[%clk 0:03:00]} 11. Re1 {[%clk 0:02:38]}  Nd7 {[%clk 0:02:57]} 12. h5 {[%clk 0:02:31]}  g5 {[%clk 0:02:56]} 13. e5 {[%clk 0:02:04]}  fxe5 {[%clk 0:02:41]} 14. dxe5 {[%clk 0:02:04]}  d5 {[%clk 0:02:41]} 15. cxd5 {[%clk 0:01:55]}  cxd5 {[%clk 0:02:42]} 16. Nd4 {[%clk 0:01:39]}  Nxe5 {[%clk 0:02:38]} 17. f4 {[%clk 0:01:26]}  gxf4 {[%clk 0:02:39]} 18. Bxf4 {[%clk 0:01:25]}  Qd6 {[%clk 0:01:35]} 19. Qe2 {[%clk 0:00:53]}  N7c6 {[%clk 0:01:35]} 20. Nxc6 {[%clk 0:00:52]}  Qc5+ {[%clk 0:01:36]} 21. Kh1 {[%clk 0:00:42]}  Nxc6 {[%clk 0:01:35]} 22. Nxd5 {[%clk 0:00:35]}  Nd4 {[%clk 0:01:23]} 23. Qg4 {[%clk 0:00:29]}  O-O {[%clk 0:00:58]} 24. Be5 {[%clk 0:00:20]}  Ra7 {[%clk 0:00:52]} 25. Nf6+ {[%clk 0:00:16]}  Rxf6 {[%clk 0:00:52]} 26. Bxf6 {[%clk 0:00:16]}  e5 {[%clk 0:00:53]} 27. Qg6 {[%clk 0:00:14]}  Bf5 {[%clk 0:00:49]} 28. Qe8+ {[%clk 0:00:13]}  Kh7 {[%clk 0:00:49]} 29. Bxg7 {[%clk 0:00:13]}  Rxg7 {[%clk 0:00:50]} 30. Rac1 {[%clk 0:00:13]}  Qb4 {[%clk 0:00:24]} 31. Qxe5 {[%clk 0:00:12]}  Qxb2 {[%clk 0:00:19]} 32. Rcd1 {[%clk 0:00:10]}  Qf2 {[%clk 0:00:12]} 33. Rxd4 {[%clk 0:00:08]}  Rxg3 {[%clk 0:00:13]} 34. Qe7+ {[%clk 0:00:07]}  Rg7 {[%clk 0:00:12]} 35. Qe2 {[%clk 0:00:06]}  Qxd4 {[%clk 0:00:12]} 36. Rf1 {[%clk 0:00:05]}  Qh4+ {[%clk 0:00:12]} 37. Kg1 {[%clk 0:00:05]}  Qd4+ {[%clk 0:00:11]} 38. Kh1 {[%clk 0:00:06]}  Bd3 {[%clk 0:00:11]} 39. Qd2 {[%clk 0:00:02]}  Qh4+ {[%clk 0:00:08]} 40. Kg1 {[%clk 0:00:02]}  Bxf1 {[%clk 0:00:08]} 0-1


[Site "https://www.chess.com"]

[Event "Titled Tuesday Blitz March 07 Late 2023"]
[White "Golubka, Petro"]
[Black "Sokolin, Leonid"]
[WhiteFideId "14114224"]
[BlackFideId "2009161"]
[WhiteElo "2391"]
[BlackElo "2394"]
[Result "1-0"]
[Round "08"]
[TimeControl "180+2"]
[Date "2023.03.07"]
[WhiteClock "0:00:13"]
[BlackClock "0:00:03"]

1. e4 {[%clk 0:01:53]}  c5 {[%clk 0:02:58]} 2. b3 {[%clk 0:01:49]}  a6 {[%clk 0:02:57]} 3. Bb2 {[%clk 0:01:49]}  Nc6 {[%clk 0:02:57]} 4. f4 {[%clk 0:01:48]}  Nf6 {[%clk 0:02:50]} 5. e5 {[%clk 0:01:44]}  Nd5 {[%clk 0:02:49]} 6. Qf3 {[%clk 0:01:44]}  e6 {[%clk 0:02:49]} 7. Bd3 {[%clk 0:01:43]}  b5 {[%clk 0:02:32]} 8. Be4 {[%clk 0:01:42]}  Bb7 {[%clk 0:02:31]} 9. Ne2 {[%clk 0:01:41]}  f5 {[%clk 0:02:26]} 10. Bxd5 {[%clk 0:01:37]}  exd5 {[%clk 0:02:25]} 11. d4 {[%clk 0:01:37]}  Qb6 {[%clk 0:02:10]} 12. Nbc3 {[%clk 0:01:31]}  Nxd4 {[%clk 0:02:04]} 13. Nxd4 {[%clk 0:01:30]}  cxd4 {[%clk 0:02:04]} 14. Ne2 {[%clk 0:01:31]}  Bb4+ {[%clk 0:02:00]} 15. Kf1 {[%clk 0:01:25]}  O-O {[%clk 0:01:48]} 16. Bxd4 {[%clk 0:01:24]}  Qc6 {[%clk 0:01:49]} 17. c3 {[%clk 0:01:24]}  Be7 {[%clk 0:01:46]} 18. h4 {[%clk 0:01:23]}  a5 {[%clk 0:01:39]} 19. Rc1 {[%clk 0:01:23]}  a4 {[%clk 0:01:36]} 20. b4 {[%clk 0:01:22]}  Qc4 {[%clk 0:01:37]} 21. Rc2 {[%clk 0:01:21]}  Bxb4 {[%clk 0:01:34]} 22. h5 {[%clk 0:01:21]}  h6 {[%clk 0:01:32]} 23. g4 {[%clk 0:01:19]}  Be7 {[%clk 0:01:18]} 24. Rg1 {[%clk 0:01:18]}  fxg4 {[%clk 0:00:59]} 25. Qxg4 {[%clk 0:01:17]}  Bg5 {[%clk 0:00:59]} 26. Ke1 {[%clk 0:01:08]}  Qd3 {[%clk 0:00:56]} 27. Rd2 {[%clk 0:01:06]}  Qb1+ {[%clk 0:00:49]} 28. Rd1 {[%clk 0:01:05]}  Qf5 {[%clk 0:00:33]} 29. fxg5 {[%clk 0:01:00]}  hxg5 {[%clk 0:00:30]} 30. Qxg5 {[%clk 0:00:59]}  Qxg5 {[%clk 0:00:29]} 31. Rxg5 {[%clk 0:01:00]}  Rf7 {[%clk 0:00:28]} 32. h6 {[%clk 0:00:57]}  Ra6 {[%clk 0:00:25]} 33. Rxg7+ {[%clk 0:00:52]}  Rxg7 {[%clk 0:00:25]} 34. hxg7 {[%clk 0:00:53]}  Rh6 {[%clk 0:00:21]} 35. Kd2 {[%clk 0:00:48]}  Kxg7 {[%clk 0:00:20]} 36. e6+ {[%clk 0:00:47]}  Kf8 {[%clk 0:00:20]} 37. Bc5+ {[%clk 0:00:43]}  Ke8 {[%clk 0:00:20]} 38. exd7+ {[%clk 0:00:42]}  Kxd7 {[%clk 0:00:20]} 39. Rg1 {[%clk 0:00:42]}  Bc8 {[%clk 0:00:19]} 40. Rg2 {[%clk 0:00:37]}  Kc6 {[%clk 0:00:17]} 41. Be3 {[%clk 0:00:37]}  Rh3 {[%clk 0:00:16]} 42. Nd4+ {[%clk 0:00:38]}  Kc5 {[%clk 0:00:15]} 43. Rg7 {[%clk 0:00:33]}  Kd6 {[%clk 0:00:13]} 44. Nxb5+ {[%clk 0:00:32]}  Ke5 {[%clk 0:00:13]} 45. Rg5+ {[%clk 0:00:29]}  Kf6 {[%clk 0:00:11]} 46. Rg2 {[%clk 0:00:22]}  Bf5 {[%clk 0:00:10]} 47. Rf2 {[%clk 0:00:21]}  Kg6 {[%clk 0:00:09]} 48. a3 {[%clk 0:00:18]}  Be4 {[%clk 0:00:07]} 49. Nd6 {[%clk 0:00:18]}  Rh1 {[%clk 0:00:06]} 50. Nxe4 {[%clk 0:00:17]}  dxe4 {[%clk 0:00:07]} 51. Bc5 {[%clk 0:00:17]}  Rh3 {[%clk 0:00:06]} 52. Kc2 {[%clk 0:00:15]}  Rh4 {[%clk 0:00:03]} 53. Bd4 {[%clk 0:00:13]} 1-0


[Site "https://www.chess.com"]

[Event "Titled Tuesday Blitz March 07 Late 2023"]
[White "Wartiovaara, Oliver"]
[Black "Guzman, Christopher"]
[WhiteFideId "513024"]
[BlackFideId "6405096"]
[WhiteElo "2214"]
[BlackElo "2281"]
[Result "0-1"]
[Round "08"]
[TimeControl "180+2"]
[Date "2023.03.07"]
[WhiteClock "0:00:03"]
[BlackClock "0:01:39"]

1. d4 {[%clk 0:02:49]}  Nf6 {[%clk 0:02:57]} 2. Nf3 {[%clk 0:02:49]}  e6 {[%clk 0:02:55]} 3. Nbd2 {[%clk 0:02:46]}  b6 {[%clk 0:02:55]} 4. e4 {[%clk 0:02:46]}  d5 {[%clk 0:02:55]} 5. e5 {[%clk 0:02:46]}  Nfd7 {[%clk 0:02:54]} 6. c3 {[%clk 0:02:40]}  c5 {[%clk 0:02:54]} 7. h4 {[%clk 0:02:32]}  h6 {[%clk 0:02:52]} 8. h5 {[%clk 0:02:31]}  Qc7 {[%clk 0:02:52]} 9. Bd3 {[%clk 0:02:25]}  Ba6 {[%clk 0:02:52]} 10. Bxa6 {[%clk 0:02:23]}  Nxa6 {[%clk 0:02:52]} 11. Qe2 {[%clk 0:02:24]}  Qb7 {[%clk 0:02:52]} 12. O-O {[%clk 0:02:22]}  Rc8 {[%clk 0:02:51]} 13. a3 {[%clk 0:02:10]}  Be7 {[%clk 0:02:50]} 14. b4 {[%clk 0:02:09]}  cxd4 {[%clk 0:02:50]} 15. cxd4 {[%clk 0:02:08]}  O-O {[%clk 0:02:50]} 16. Rd1 {[%clk 0:01:45]}  Nc7 {[%clk 0:02:49]} 17. Nf1 {[%clk 0:01:45]}  Qa6 {[%clk 0:02:48]} 18. Qe3 {[%clk 0:01:44]}  Nb5 {[%clk 0:02:47]} 19. Bb2 {[%clk 0:01:43]}  Qa4 {[%clk 0:02:47]} 20. Rac1 {[%clk 0:01:31]}  a5 {[%clk 0:02:46]} 21. bxa5 {[%clk 0:01:22]}  bxa5 {[%clk 0:02:45]} 22. Rxc8 {[%clk 0:01:20]}  Rxc8 {[%clk 0:02:44]} 23. Rc1 {[%clk 0:01:21]}  Rxc1 {[%clk 0:02:43]} 24. Qxc1 {[%clk 0:01:22]}  Bxa3 {[%clk 0:02:38]} 25. Bxa3 {[%clk 0:01:19]}  Nxa3 {[%clk 0:02:37]} 26. Qc8+ {[%clk 0:01:07]}  Nf8 {[%clk 0:02:36]} 27. Qd8 {[%clk 0:00:51]}  Nb5 {[%clk 0:02:26]} 28. Qe8 {[%clk 0:00:47]}  Qb4 {[%clk 0:02:25]} 29. Ne3 {[%clk 0:00:18]}  Nxd4 {[%clk 0:02:22]} 30. Nh4 {[%clk 0:00:18]}  Qe1+ {[%clk 0:02:20]} 31. Kh2 {[%clk 0:00:18]}  Qxf2 {[%clk 0:02:20]} 32. Ng6 {[%clk 0:00:12]}  Nf3+ {[%clk 0:02:15]} 33. Kh3 {[%clk 0:00:12]}  Ng1+ {[%clk 0:02:09]} 34. Kg4 {[%clk 0:00:12]}  fxg6 {[%clk 0:02:07]} 35. hxg6 {[%clk 0:00:10]}  Ne2 {[%clk 0:01:54]} 36. Kh5 {[%clk 0:00:06]}  Ng3+ {[%clk 0:01:42]} 37. Kg4 {[%clk 0:00:06]}  Ne4 {[%clk 0:01:41]} 38. Nxd5 {[%clk 0:00:03]}  Qg3+ {[%clk 0:01:39]} 0-1


[Site "https://www.chess.com"]